bitfinex/quotes_ETHUSD_20250504
["timestamp","ask_amount","ask_price","bid_price","bid_amount"]
[1746399489891,0.0712,1822.2,1821.9,9.1892154]
[1746399490255,0.0712,1822.2,1821.9,5.48865021]
[1746399490453,0.0712,1822.2,1821.7,6.68004034]
[1746399490656,6.13225257,1822.2,1822.1,5.48817298]
[1746399490989,6.13225257,1822.2,1822.0,5.48829435]
[1746399492268,6.13225257,1822.2,1822.1,5.48817298]
[1746399498258,6.13225257,1822.2,1822.1,6.27087298]
[1746399498459,6.13225257,1822.2,1822.1,7.60989799]
[1746399500355,6.13225257,1822.2,1822.1,7.66477521]
[1746399500898,0.00551996,1822.5,1822.4,5.48726953]
[1746399501071,0.00551996,1822.5,1822.4,6.30476953]
[1746399504743,0.00551996,1822.5,1822.4,6.35963588]
[1746399504941,0.00551996,1822.5,1822.4,7.54434577]
[1746399505544,0.00551996,1822.5,1822.4,7.48947942]
[1746399508243,0.00551996,1822.5,1822.4,7.54434577]
[1746399508840,0.00551996,1822.5,1822.4,7.48947942]
[1746399509139,0.00551996,1822.5,1822.4,7.54434578]
[1746399509439,0.00551996,1822.5,1822.4,7.48947942]
[1746399509739,0.00551996,1822.5,1822.4,7.54434578]
[1746399512147,0.00551996,1822.5,1822.4,9.17530687]
[1746399512951,0.00551996,1822.5,1822.4,9.12044051]
[1746399513139,0.00551996,1822.5,1822.4,9.17530416]
[1746399514944,1e-08,1822.5,1822.4,9.17530416]
[1746399515159,1e-08,1822.5,1822.4,9.16755619]
[1746399515450,1e-08,1822.5,1822.4,9.11269307]
[1746399515655,1e-08,1822.5,1822.4,9.16754449]
[1746399515857,1e-08,1822.5,1822.4,9.11269307]
[1746399517466,1e-08,1822.5,1822.4,12.1675433]
[1746399517747,1e-08,1822.5,1822.4,12.11269307]
[1746399525171,1e-08,1822.5,1822.4,13.81169307]
[1746399525957,0.0712,1823.0,1822.9,5.48576444]
[1746399526267,0.0712,1823.0,1822.9,6.03434088]
[1746399530589,0.4082411,1823.2,1823.1,5.48516263]
[1746399530982,0.4794411,1823.2,1823.1,5.48516263]
[1746399535098,0.0712,1823.1,1822.9,5.48564479]
[1746399535995,0.0712,1823.1,1822.9,10.97123102]
[1746399536197,6.20345257,1823.1,1823.0,5.48546352]
[1746399536796,6.20345257,1823.1,1822.9,5.48557564]
[1746399537863,6.20345257,1823.1,1822.9,5.48556168]
[1746399538062,6.20345257,1823.1,1822.9,5.48556001]
[1746399538290,6.20345257,1823.1,1822.9,5.48555723]
[1746399539698,6.20345257,1823.1,1822.9,5.48552357]
[1746399539874,6.20345257,1823.1,1823.0,5.48546352]
[1746399544617,6.20345257,1823.1,1822.9,5.48567065]
[1746399544803,6.20345257,1823.1,1822.8,10.18497361]
[1746399545120,6.20345257,1823.1,1822.9,5.48573797]
[1746399545472,6.20345257,1823.1,1822.9,10.97128591]
[1746399545903,6.20345257,1823.1,1822.9,5.48554794]
[1746399547304,6.20345257,1823.1,1822.9,10.97108217]
[1746399547507,6.20345257,1823.1,1822.9,5.48553423]
[1746399547905,6.20345257,1823.1,1823.0,5.48546352]
[1746399548507,6.20345257,1823.1,1822.9,5.48553423]
[1746399550915,6.20345257,1823.1,1823.0,5.48546352]
[1746399553218,6.20345257,1823.1,1822.9,5.48566271]
[1746399555434,6.20345257,1823.1,1823.0,5.48546352]
[1746399556330,6.20345257,1823.1,1822.9,5.48557296]
[1746399559431,6.20345257,1823.1,1822.8,10.17785106]
[1746399560331,6.20345257,1823.1,1822.9,5.48573618]
[1746399560535,6.20345257,1823.1,1822.8,10.17790981]
[1746399560700,6.20345257,1823.1,1822.9,5.48553366]
[1746399561128,6.20345257,1823.1,1822.9,10.97106732]
[1746399561330,6.20345257,1823.1,1822.9,5.48553366]
[1746399563408,6.20345257,1823.1,1822.8,10.17787326]
[1746399563716,6.20345257,1823.1,1822.9,5.48569516]
[1746399565141,6.20345257,1823.1,1822.8,10.17787326]
[1746399565435,6.20345257,1823.1,1822.9,5.48572895]
[1746399566331,6.20345257,1823.1,1822.8,10.17787082]
[1746399566640,6.20345257,1823.1,1822.8,15.66369611]
[1746399566937,6.20345257,1823.1,1822.8,10.17782529]
[1746399567130,6.20345257,1823.1,1822.8,15.66366752]
[1746399567439,6.13225257,1823.1,1822.9,5.48553062]
[1746399567744,6.13225257,1823.1,1823.0,5.48546352]
[1746399572246,6.13225257,1823.1,1823.0,6.24676352]
[1746399577147,0.4082411,1823.2,1823.1,5.48516263]
[1746399578737,0.4082411,1823.2,1823.0,5.48534724]
[1746399580675,0.4082411,1823.2,1823.0,10.16934724]
[1746399581072,0.4082411,1823.2,1823.0,5.48534724]
[1746399581279,0.4082411,1823.2,1823.0,10.16934724]
[1746399581577,0.4082411,1823.2,1823.0,4.684]
[1746399581777,0.4794411,1823.2,1823.0,4.684]
[1746399582177,0.4794411,1823.2,1823.0,10.16933675]
[1746399583084,6.61169367,1823.2,1823.0,10.16933675]
[1746399583786,0.4794411,1823.2,1822.9,10.16964856]
[1746399585547,0.4794411,1823.2,1822.9,4.684]
[1746399585860,5.9643453,1823.2,1822.9,4.685]
[1746399586982,11.44950549,1823.2,1822.7,9.17416938]
[1746399587152,5.9643453,1823.2,1822.7,13.85910665]
[1746399588011,0.0712,1823.0,1822.7,3.68794682]
[1746399588180,5.55678236,1823.0,1822.7,3.68794682]
[1746399588511,3.0712,1823.0,1822.7,3.68794682]
[1746399588671,8.55668862,1823.0,1822.7,3.68794682]
[1746399589505,8.55668862,1823.0,1822.6,13.8595535]
[1746399591396,8.55668862,1823.0,1822.6,9.1745535]
[1746399591598,8.55668862,1823.0,1822.6,13.8595535]
[1746399592990,14.04242507,1823.0,1822.6,8.37294682]
[1746399593312,8.55668862,1823.0,1822.6,8.37294682]
[1746399593679,8.55668862,1823.0,1822.6,4.685]
[1746399595113,5.48577412,1822.9,1822.6,4.685]
[1746399598317,8.55668862,1823.0,1822.6,10.17155039]
[1746399598522,14.04244982,1823.0,1822.6,4.685]
[1746399598820,5.48577371,1822.9,1822.6,4.685]
[1746399599820,5.55726829,1822.8,1822.6,4.685]
[1746399600020,0.0712,1822.8,1822.6,4.685]
[1746399600423,0.0712,1822.8,1822.6,10.17160639]
[1746399600723,5.48686197,1822.6,1822.3,3.68794682]
[1746399600921,0.0712,1822.5,1822.3,3.68794682]
[1746399601222,8.48726953,1822.4,1822.3,3.68794682]
[1746399601627,9.03726953,1822.4,1822.3,3.68794682]
[1746399601813,9.10846953,1822.4,1822.3,3.68794682]
[1746399602014,10.73943062,1822.4,1822.3,3.68794682]
[1746399602199,11.14681602,1822.4,1822.3,3.68794682]
[1746399602794,9.03757065,1822.3,1822.2,3.68794682]
[1746399602993,9.10877065,1822.3,1822.2,3.68794682]
[1746399603442,9.41510552,1822.3,1822.2,3.68794682]
[1746399603723,11.04606661,1822.3,1822.2,3.68794682]
[1746399604296,10.73973174,1822.3,1822.2,3.68794682]
[1746399604697,16.04576044,1822.3,1822.2,3.68794682]
[1746399605026,6.11027673,1821.8,1821.7,4.81181473]
[1746399605398,9.11027673,1821.8,1821.7,4.81181473]
[1746399605599,11.15864698,1821.8,1821.7,4.81181473]
[1746399607128,5.48971609,1821.6,1821.2,10.17074271]
[1746399607302,5.56123932,1821.5,1821.1,10.92224097]
[1746399607503,2.18096109,1821.4,1820.7,0.7865]
[1746399607737,2.18096109,1821.4,1820.8,15.66379726]
[1746399607738,5.49074307,1821.3,1820.8,15.66379726]
[1746399607910,5.49074307,1821.3,1820.9,5.49177226]
[1746399608235,10.67142315,1821.4,1820.9,5.49177226]
[1746399608609,9.04046206,1821.4,1820.9,5.49177226]
[1746399608811,10.67142315,1821.4,1820.9,5.49177226]
[1746399609128,5.49135111,1821.1,1820.7,0.7865]
[1746399609341,8.49149359,1821.0,1820.7,0.7865]
[1746399609529,1.03652759,1821.2,1820.6,6.44277582]
[1746399609740,3.0712,1821.6,1821.2,5.49073085]
[1746399610038,6.04002729,1821.5,1821.0,5.49148819]
[1746399610241,3.0,1821.4,1821.0,5.49148819]
[1746399610450,3.0,1821.4,1820.9,6.27816921]
[1746399610451,4.63096109,1821.4,1820.9,6.27816921]
[1746399610656,10.12130231,1821.4,1820.9,6.27816921]
[1746399610953,0.0712,1821.3,1820.9,11.76969526]
[1746399611130,0.0712,1821.3,1820.9,7.92309558]
[1746399611967,5.56196663,1821.3,1820.9,4.681]
[1746399612542,5.56196663,1821.3,1820.7,6.83289873]
[1746399612543,7.1219761,1821.2,1820.7,10.95512699]
[1746399612746,7.1219761,1821.2,1820.7,10.17422699]
[1746399613122,3.0,1821.1,1820.6,5.49253932]
[1746399613323,3.0,1821.1,1820.6,10.17444812]
[1746399613524,8.49123778,1821.1,1820.6,10.17453621]
[1746399614264,7.67256611,1821.0,1820.5,9.02177514]
[1746399614426,0.0712,1820.9,1820.6,10.17468098]
[1746399614759,0.55,1820.8,1820.5,3.5289402]
[1746399614963,2.18096109,1820.8,1820.5,7.4300402]
[1746399615658,3.0712,1821.3,1820.9,5.49153116]
[1746399616034,1.70216109,1821.3,1820.9,10.17477617]
[1746399616241,0.49358523,1821.5,1821.1,5.49097755]
[1746399616437,5.56063141,1821.7,1821.2,5.49066814]
[1746399616958,10.12082088,1821.6,1821.2,4.683]
[1746399617259,10.1208202,1821.6,1821.1,5.49118132]
[1746399617556,5.4896996,1821.6,1821.1,5.49102506]
[1746399617735,5.4896996,1821.6,1821.2,5.49086853]
[1746399618063,4.70216109,1821.7,1821.2,5.49086853]
[1746399618064,10.19171552,1821.7,1821.2,5.49086853]
[1746399618361,10.19171552,1821.7,1821.3,5.49044862]
[1746399618362,0.0712,1821.7,1821.3,5.49044862]
[1746399618562,3.0712,1821.7,1821.3,5.59374461]
[1746399618762,1.63096109,1822.0,1821.5,5.48995325]
[1746399618923,1.70216109,1822.1,1821.7,5.48935618]
[1746399619432,0.55,1822.0,1821.8,0.10446467]
[1746399619655,10.190346,1822.1,1821.8,0.10446467]
[1746399619847,1.63096109,1822.3,1821.8,5.5933266]
[1746399620049,1.63096109,1822.3,1821.9,5.48864322]
[1746399620360,0.55,1822.2,1821.9,5.48864322]
[1746399620567,5.35188998,1822.4,1822.0,5.48832347]
[1746399620734,5.35188998,1822.4,1822.1,5.48804461]
[1746399620931,3.0,1822.3,1822.0,10.17131307]
[1746399621147,5.35188998,1822.4,1822.0,10.17131307]
[1746399621342,3.0,1822.3,1822.0,10.17131307]
[1746399622176,8.4883941,1822.1,1821.9,4.682]
[1746399622368,0.55,1822.0,1821.6,10.17167626]
[1746399622680,3.55,1822.0,1821.7,4.682]
[1746399622836,9.03854467,1822.0,1821.7,4.682]
[1746399623437,0.6212,1822.0,1821.4,5.49014758]
[1746399623669,3.55,1821.8,1821.5,10.17197828]
[1746399623972,3.0,1821.9,1821.5,10.17197828]
[1746399624865,8.48879442,1821.9,1821.5,4.682]
[1746399625074,5.48907842,1821.8,1821.5,4.682]
[1746399625370,5.48942113,1821.7,1821.4,4.682]
[1746399625568,0.55,1821.8,1821.3,0.757]
[1746399625769,0.55,1821.8,1821.3,0.81189948]
[1746399625976,3.55,1821.8,1821.4,5.49014946]
[1746399626574,9.0392066,1821.8,1821.3,6.2474115]
[1746399626774,9.0392066,1821.8,1821.4,4.682]
[1746399627140,8.48940463,1821.7,1821.3,10.9294115]
[1746399627342,3.0,1821.7,1821.3,10.92938239]
[1746399627543,3.0,1821.7,1821.4,5.49010762]
[1746399629981,3.0,1821.7,1821.5,5.4899656]
[1746399630177,3.0,1821.7,1821.4,5.49023967]
[1746399630682,3.0,1821.7,1821.3,10.92944295]
[1746399630980,3.0,1821.7,1821.4,5.49010502]
[1746399632580,3.0,1821.7,1821.3,10.92942581]
[1746399633393,8.48944535,1821.7,1821.3,0.757]
[1746399633550,8.48944535,1821.7,1821.3,5.49055396]
[1746399633751,0.55,1821.6,1821.3,4.678]
[1746399633949,0.55,1821.6,1821.3,10.16855985]
[1746399635484,0.55,1821.6,1821.3,15.65892116]
[1746399635686,3.0,1821.7,1821.4,5.49007418]
[1746399635866,3.0,1821.7,1821.4,10.98016853]
[1746399636194,3.0,1821.7,1821.4,5.49007418]
[1746399636404,3.0,1821.7,1821.4,5.49004535]
[1746399636922,3.0,1821.7,1821.5,5.48992961]
[1746399640996,3.0,1821.7,1821.5,5.48996515]
[1746399643073,3.0,1821.7,1821.4,5.49010262]
[1746399644122,3.0,1821.7,1821.3,4.678]
[1746399644286,5.97634391,1822.0,1821.7,5.48925089]
[1746399644287,6.14,1821.8,1821.7,5.48925089]
[1746399644606,11.62881497,1821.9,1821.5,6.26923319]
[1746399644807,11.62881497,1821.9,1821.4,5.49009065]
[1746399644983,0.55,1821.8,1821.4,15.65815256]
[1746399645182,5.48937833,1821.7,1821.3,6.26985042]
[1746399645386,6.2112,1821.6,1821.2,5.4906524]
[1746399645583,6.2112,1821.6,1821.3,5.49055311]
[1746399646108,6.2112,1821.6,1821.2,10.16872892]
[1746399646271,6.2112,1821.6,1821.3,5.4905801]
[1746399646476,6.14,1821.6,1821.4,5.49021328]
[1746399646672,6.14,1821.6,1821.4,5.49005128]
[1746399646882,6.14,1821.8,1821.7,5.48937805]
[1746399647214,6.14,1822.1,1821.8,5.48895195]
[1746399647372,3.0,1822.0,1821.8,5.48895195]
[1746399647577,3.0,1822.0,1821.9,5.48877545]
[1746399647775,6.14,1822.1,1821.9,5.48858298]
[1746399647994,6.14,1822.2,1822.0,5.48835843]
[1746399648212,6.14,1822.2,1822.0,10.16635843]
[1746399648578,6.14,1822.2,1822.0,4.678]
[1746399649018,6.14,1822.2,1822.0,10.16631702]
[1746399649314,6.14,1822.2,1822.0,15.65455118]
[1746399649518,6.14,1822.2,1822.0,10.16623416]
[1746399650216,6.14,1822.2,1822.0,4.678]
[1746399650715,6.14,1822.3,1822.1,5.48804645]
[1746399650917,6.14,1822.3,1822.0,10.166288]
[1746399653212,6.14,1822.3,1822.1,5.54298339]
[1746399653510,9.14,1822.4,1822.1,5.48817298]
[1746399653904,9.14,1822.4,1822.1,5.48795859]
[1746399654107,9.14,1822.4,1822.2,5.48773394]
[1746399655013,9.14,1822.4,1822.1,5.48799864]
[1746399656020,9.14,1822.4,1822.1,5.48795912]
[1746399656387,9.14,1822.4,1822.1,5.48794082]
[1746399656589,9.14,1822.4,1822.2,5.48785799]
[1746399657125,9.14,1822.4,1822.1,5.48794861]
[1746399657330,9.14,1822.4,1822.2,6.27062038]
[1746399657503,9.14,1822.4,1822.2,0.7828]
[1746399658492,9.14,1822.4,1822.1,5.4880474]
[1746399659812,9.14,1822.4,1822.2,5.48781314]
[1746399660335,9.14,1822.4,1822.1,5.48800145]
[1746399660545,9.14,1822.4,1822.2,5.48784025]
[1746399660742,6.14,1822.4,1822.3,5.48757065]
[1746399661234,6.14,1822.4,1822.1,7.13074027]
[1746399661439,6.14,1822.4,1822.2,0.8159]
[1746399662445,6.14,1822.4,1822.2,6.30363774]
[1746399665592,6.14,1822.4,1821.8,7.11751193]
[1746399665593,5.4882345,1822.1,1821.9,4.673]
[1746399665851,8.48843649,1822.1,1821.6,5.4275]
[1746399666005,11.62861321,1822.0,1821.6,10.91702897]
[1746399666853,11.62861321,1822.0,1821.6,0.7545]
[1746399667158,11.62881304,1821.9,1821.5,4.673]
[1746399667310,6.14,1821.9,1821.8,5.48907673]
[1746399667523,6.2112,1822.3,1821.8,0.7545]
[1746399667852,6.2112,1822.3,1822.1,6.24242969]
[1746399667853,6.14,1822.3,1822.1,6.24242969]
[1746399668063,3.0,1822.4,1822.2,0.62424297]
[1746399668275,8.48728688,1822.4,1822.1,0.7545]
[1746399668485,8.48728688,1822.4,1822.1,6.24265647]
[1746399668486,3.0,1822.4,1822.1,6.24265647]
[1746399668667,3.0,1822.4,1822.1,0.7545]
[1746399668840,3.0,1822.4,1822.1,6.24250711]
[1746399670577,3.0,1822.4,1822.2,5.48783574]
[1746399671897,3.0,1822.4,1822.2,5.48781239]
[1746399672196,3.0,1822.4,1822.2,6.11204363]
[1746399673984,3.0,1822.4,1822.2,0.62423124]
[1746399674684,5.48759999,1822.3,1821.9,6.25324714]
[1746399674845,5.48759999,1822.3,1821.9,4.673]
[1746399675351,5.48800934,1822.2,1821.8,4.673]
[1746399675683,5.48800934,1822.2,1821.8,10.16204017]
[1746399676854,6.03775134,1822.3,1821.9,5.48873889]
[1746399677051,6.14,1822.2,1821.9,5.48873889]
[1746399677254,6.14,1822.2,1821.8,10.21677693]
[1746399677891,11.62792513,1822.2,1821.8,10.21677693]
[1746399678100,5.48818154,1822.1,1821.8,4.673]
[1746399678321,0.0712,1822.0,1821.8,4.673]
[1746399678819,14.69973335,1822.0,1821.6,5.48949581]
[1746399679026,14.69973335,1822.0,1821.7,4.673]
[1746399679323,9.2112,1822.0,1821.7,10.16236344]
[1746399679673,9.2112,1822.0,1821.7,4.673]
[1746399680086,9.14,1822.0,1821.7,4.673]
[1746399680289,9.14,1822.0,1821.7,10.16215208]
[1746399680490,9.14,1822.0,1821.8,5.48890906]
[1746399680694,6.14,1822.0,1821.8,5.48890906]
[1746399681201,6.14,1822.0,1821.8,5.48890195]
[1746399683124,6.14,1822.1,1821.8,5.48890195]
[1746399684336,6.14,1822.1,1821.8,10.97774928]
[1746399684639,6.14,1822.1,1821.9,5.48864899]
[1746399687428,6.14,1822.1,1821.8,6.32062979]
[1746399687631,6.14,1822.1,1821.9,5.48875106]
[1746399688445,6.14,1822.1,1821.8,6.32070057]
[1746399688817,14.69909522,1822.2,1821.8,6.32070057]
[1746399689443,9.2112,1822.2,1821.9,5.48858931]
[1746399691239,9.2112,1822.2,1821.9,5.48866825]
[1746399692440,9.2112,1822.2,1821.9,5.48862406]
[1746399693537,3.0,1821.8,1821.6,4.673]
[1746399694644,0.55,1821.9,1821.6,10.1626415]
[1746399695020,8.55976552,1822.0,1821.7,5.48926883]
[1746399695021,3.0712,1822.0,1821.7,5.48926883]
[1746399695542,3.0,1821.8,1821.6,4.673]
[1746399696044,3.0,1821.8,1821.5,5.48981931]
[1746399697563,6.14,1821.7,1821.5,5.48981931]
[1746399698163,6.14,1821.7,1821.6,5.4896794]
[1746399703566,9.14,1821.8,1821.4,10.99335532]
[1746399703739,5.5607569,1821.7,1821.3,4.671]
[1746399703953,5.5607569,1821.7,1821.3,10.16156405]
[1746399704867,0.0712,1821.7,1821.3,10.16156405]
[1746399705434,0.0712,1821.7,1821.3,10.21628277]
[1746399705668,0.0712,1821.7,1821.4,5.49013301]
[1746399706777,14.62919388,1821.8,1821.4,5.49013301]
[1746399707073,9.14,1821.8,1821.4,5.4902822]
[1746399708976,14.62910525,1821.8,1821.4,5.4902822]
[1746399709279,6.14,1821.7,1821.4,5.4902822]
[1746399710479,6.14,1821.7,1821.0,0.41779026]
[1746399710480,3.0712,1821.6,1821.0,0.8164]
[1746399710683,6.14,1821.5,1821.1,10.16316248]
[1746399710854,6.14,1821.5,1821.2,5.49085044]
[1746399711043,6.14,1821.5,1821.3,5.49040082]
[1746399711243,6.14,1821.5,1821.3,7.45942102]
[1746399711474,6.14,1821.5,1821.3,7.4045166]
[1746399711657,6.14,1821.5,1821.4,5.4902822]
[1746399711865,6.14,1821.6,1821.4,5.4902822]
[1746399712288,6.14,1821.6,1821.3,1.91411578]
[1746399712585,6.13240873,1821.6,1821.3,7.40458449]
[1746399712882,6.13240873,1821.6,1821.4,5.4902598]
[1746399714961,6.13240873,1821.6,1821.3,12.07650864]
[1746399716085,6.13240873,1821.6,1821.4,5.49020924]
[1746399716284,6.13240873,1821.6,1821.4,6.69784174]
[1746399719898,6.13240873,1821.6,1821.4,6.69773423]
[1746399720799,6.13240873,1821.6,1821.5,5.48998078]
[1746399720950,5.48840021,1822.1,1821.7,5.48934341]
[1746399720951,6.20360873,1822.0,1821.7,5.48934341]
[1746399721379,6.20360873,1822.0,1821.6,5.4894945]
[1746399721689,3.0,1821.9,1821.7,5.48935484]
[1746399723587,3.0,1821.9,1821.8,5.48907673]
[1746399723804,6.13240873,1822.0,1821.9,5.48877545]
[1746399725657,6.13240873,1822.3,1822.1,5.48805859]
[1746399725864,6.13240873,1822.3,1822.1,5.48803817]
[1746399726396,6.13240873,1822.3,1822.1,5.4880126]
[1746399726713,9.78213762,1822.7,1822.5,5.48696127]
[1746399727162,6.13240873,1822.7,1822.5,5.48696127]
[1746399728348,9.13240873,1822.7,1822.6,5.48666739]
[1746399728483,6.13240873,1822.7,1822.6,5.48666739]
[1746399729075,6.13240873,1822.7,1822.6,5.54152825]
[1746399729271,3.64972889,1822.9,1822.8,5.48606539]
[1746399729990,3.64972889,1822.9,1822.8,6.25296539]
[1746399730566,3.64972889,1822.9,1822.8,6.30781941]
[1746399731188,6.14480438,1823.1,1823.0,5.48546352]
[1746399731602,0.01239565,1823.1,1823.0,7.92682786]
[1746399731907,0.01239565,1823.1,1823.0,9.73478447]
[1746399732118,0.01239565,1823.1,1823.0,8.10632013]
[1746399732473,0.01239565,1823.1,1823.0,12.77232013]
[1746399735503,0.01239565,1823.1,1823.0,14.40078447]
[1746399736706,0.01239565,1823.1,1823.0,12.77232013]
[1746399738528,0.01239565,1823.1,1823.0,9.73478447]
[1746399738696,0.01239565,1823.1,1823.0,14.45462443]
[1746399738898,0.4082411,1823.2,1823.1,5.48516263]
[1746399739097,0.4082411,1823.2,1823.1,8.21036734]
[1746399740318,0.4082411,1823.2,1823.1,8.2652043]
[1746399741696,0.4082411,1823.2,1823.1,8.21036734]
[1746399744589,0.4082411,1823.2,1823.1,8.26520442]
[1746399746292,0.4082411,1823.2,1823.1,8.21036734]
[1746399746925,0.4082411,1823.2,1823.1,8.26520442]
[1746399748433,6.13240873,1823.7,1823.6,5.48365869]
[1746399750193,3.0,1823.9,1823.4,0.7972]
[1746399750393,0.0712,1823.8,1823.5,5.48384971]
[1746399750598,0.0712,1823.8,1823.6,5.48364158]
[1746399750928,0.0712,1823.8,1823.6,5.48343902]
[1746399751132,0.0712,1823.8,1823.5,5.48374318]
[1746399751305,0.0712,1823.8,1821.6,7.48538611]
[1746399751306,0.0712,1823.5,1823.3,4.663]
[1746399752204,0.0712,1823.5,1823.2,5.48462277]
[1746399752437,6.20360873,1823.5,1823.3,5.48426309]
[1746399753446,6.20360873,1823.5,1823.2,10.69616559]
[1746399754132,6.20360873,1823.5,1823.2,16.18079998]
[1746399754462,3.0,1823.4,1823.1,5.48498065]
[1746399754681,3.0,1823.4,1823.2,4.661]
[1746399755166,3.0,1823.4,1823.1,5.48498065]
[1746399755366,3.0,1823.4,1823.1,10.14598065]
[1746399755727,3.0,1823.4,1822.8,0.782]
[1746399755960,0.0712,1823.2,1822.9,5.48561727]
[1746399756159,7.11406698,1823.0,1822.4,0.7931]
[1746399756348,8.55698706,1822.9,1822.5,5.48674574]
[1746399756746,3.0712,1822.9,1822.5,5.48674574]
[1746399757148,3.0712,1822.9,1822.5,10.97348457]
[1746399757354,3.0712,1822.9,1822.5,1.17665846]
[1746399757665,3.0712,1822.9,1822.8,5.48606539]
[1746399757851,3.0,1822.9,1822.8,5.48606539]
[1746399758057,6.13240873,1823.0,1822.8,5.48606539]
[1746399758987,6.13240873,1823.0,1822.7,10.14719362]
[1746399759364,6.13240873,1823.0,1822.7,10.202051]
[1746399759553,6.13240873,1823.0,1822.8,5.48603926]
[1746399759975,6.13240873,1823.0,1822.7,10.14718602]
[1746399760352,6.13240873,1823.0,1822.7,10.2020434]
[1746399760884,6.13240873,1823.0,1822.8,5.48602526]
[1746399761193,9.13240873,1823.0,1822.9,5.48576444]
[1746399761482,6.13240873,1823.0,1822.7,10.14721734]
[1746399761682,6.13240873,1823.0,1822.8,5.48600818]
[1746399761984,6.13240873,1823.0,1822.7,10.14719102]
[1746399762185,6.13240873,1823.0,1822.8,5.48604466]
[1746399762678,6.13240873,1823.0,1822.8,5.48583378]
[1746399762982,6.13240873,1823.0,1822.9,5.48576444]
[1746399763490,6.13240873,1823.0,1822.8,5.48592348]
[1746399766484,6.13240873,1823.0,1822.7,10.14717961]
[1746399766685,6.13240873,1823.0,1822.7,4.662]
[1746399766686,0.0712,1822.9,1822.7,4.662]
[1746399767598,5.55697078,1822.9,1822.6,4.662]
[1746399768082,6.13240873,1822.8,1822.6,4.662]
[1746399768747,6.13240873,1822.8,1822.6,10.14851102]
[1746399768953,6.13240873,1822.8,1822.6,15.63493851]
[1746399769148,6.13240873,1822.8,1822.6,10.14842749]
[1746399769895,6.13240873,1822.8,1822.6,15.63491941]
[1746399770389,6.13240873,1822.8,1822.7,5.48636637]
[1746399771305,6.13240873,1822.8,1822.7,7.31660301]
[1746399773408,6.13240873,1822.8,1822.7,6.50120301]
[1746399773701,6.13240873,1822.8,1822.6,10.14846259]
[1746399773907,6.13240873,1823.0,1822.7,5.48636637]
[1746399775089,6.13240873,1823.0,1822.7,10.14836637]
[1746399775292,6.13240873,1823.0,1822.7,4.662]
[1746399775486,6.13240873,1823.0,1822.7,10.14824257]
[1746399776673,6.13240873,1823.0,1822.6,10.97300281]
[1746399776873,6.13240873,1823.0,1822.7,10.1482417]
[1746399779011,6.13240873,1823.0,1822.7,4.662]
[1746399779310,0.0712,1822.9,1822.7,4.662]
[1746399779811,6.20360873,1822.9,1822.7,4.662]
[1746399780600,3.0,1822.8,1822.5,10.14884184]
[1746399781364,3.0,1822.8,1822.5,5.48684184]
[1746399781568,3.0,1822.8,1822.5,10.14884184]
[1746399781869,3.0,1822.8,1822.6,5.48663346]
[1746399782097,3.0,1822.8,1822.7,5.48636637]
[1746399782604,6.13240873,1822.9,1822.8,5.48606539]
[1746399782898,6.13240873,1822.9,1822.7,6.71530606]
[1746399782899,8.48508822,1823.2,1822.7,6.66031011]
[1746399783107,7.18302047,1823.1,1822.7,4.662]
[1746399783305,3.0,1822.9,1822.6,5.48655385]
[1746399783525,0.0712,1822.8,1822.6,10.14855385]
[1746399783682,0.0712,1822.8,1822.7,5.48636637]
[1746399784014,0.0712,1823.0,1822.7,5.48615978]
[1746399784508,3.0,1822.9,1822.6,10.14852022]
[1746399785927,8.48577344,1822.9,1822.6,4.662]
[1746399786129,0.0712,1822.7,1822.6,4.661]
[1746399786631,0.0712,1822.7,1822.4,5.4870674]
[1746399786830,0.0712,1822.7,1822.5,4.661]
[1746399787027,0.0712,1822.7,1822.5,5.48695875]
[1746399787236,0.0712,1822.7,1822.4,6.66388168]
[1746399787404,5.55775723,1822.7,1822.4,1.17677077]
[1746399787611,5.48688755,1822.6,1822.4,4.661]
[1746399787811,3.0712,1822.5,1822.4,4.661]
[1746399788331,12.02058167,1822.5,1822.2,3.69311852]
[1746399788529,12.02058167,1822.5,1822.2,8.35411852]
[1746399788713,5.48739571,1822.4,1822.2,8.35411852]
[1746399788921,0.0712,1822.3,1822.2,3.69311852]
[1746399789117,3.53360873,1822.3,1822.2,3.69311852]
[1746399789722,3.53360873,1822.3,1822.0,8.35511852]
[1746399789925,3.53360873,1822.3,1822.0,3.69311852]
[1746399790138,9.02131725,1822.3,1822.0,3.69311852]
[1746399791000,6.46240873,1822.2,1822.0,3.69311852]
[1746399791308,9.10937298,1822.1,1822.0,3.69311852]
[1746399791522,12.12214252,1822.1,1822.0,3.69311852]
[1746399791723,15.58455125,1822.1,1822.0,3.69311852]
[1746399793504,15.58455125,1822.1,1821.5,8.35511852]
[1746399793505,5.48956682,1821.7,1821.5,8.35511852]
[1746399793709,3.53360873,1821.6,1821.5,8.35511852]
[1746399793918,6.53360873,1821.6,1821.5,8.35511852]
[1746399794638,12.02328813,1821.6,1821.5,3.69311852]
[1746399795338,6.53360873,1821.6,1821.5,3.69311852]
[1746399796153,12.02328813,1821.6,1821.5,3.69311852]
[1746399796306,12.57328813,1821.6,1821.5,3.69311852]
[1746399796915,7.08360873,1821.6,1821.5,3.69311852]
[1746399797116,3.46240873,1821.6,1821.5,10.36801115]
[1746399797301,5.48862392,1822.0,1821.5,10.36801115]
[1746399797646,8.48949574,1821.7,1821.5,3.69311852]
[1746399797944,8.48949574,1821.7,1821.4,4.663]
[1746399798845,8.48949574,1821.7,1821.3,10.96903281]
[1746399799020,8.48949574,1821.7,1821.3,5.4786]
[1746399800055,8.48949574,1821.7,1821.3,10.96910403]
[1746399800855,3.0,1821.7,1821.3,10.96910403]
[1746399801043,3.0,1821.7,1821.4,5.49025249]
[1746399801247,3.0,1821.7,1821.4,5.54518134]
[1746399801453,3.0,1821.7,1821.5,5.48980576]
[1746399801632,8.55990173,1822.0,1821.6,5.4896794]
[1746399802143,8.55990173,1822.0,1821.5,5.48983259]
[1746399802617,8.55990173,1822.0,1821.5,5.48976485]
[1746399802818,8.55990173,1822.0,1821.5,6.58775729]
[1746399803043,8.55990173,1822.0,1821.6,5.48963773]
[1746399803253,3.0,1821.8,1821.6,5.48963773]
[1746399803449,3.0,1821.8,1821.7,5.48937805]
[1746399803850,3.46240873,1821.9,1821.7,5.48937805]
[1746399804055,3.46240873,1822.0,1821.8,5.48905909]